bitfinex-derivatives/quotes_BTCF0:USTF0_20250213
["timestamp","ask_amount","ask_price","bid_price","bid_amount"]
[1739437371062,0.15573233,96086.0,96082.0,0.208125]
[1739437371365,0.15573233,96086.0,96074.0,0.0987]
[1739437371562,0.15573233,96086.0,96083.0,0.2081225]
[1739437371762,0.15573233,96086.0,96074.0,0.0987]
[1739437372267,0.12519395,96090.0,96074.0,0.0987]
[1739437372863,0.12519395,96090.0,96085.0,0.2081172]
[1739437373056,0.0245482,96091.0,96074.0,0.0987]
[1739437373367,0.18636437,96094.0,96074.0,0.0987]
[1739437373569,0.3608,96093.0,96074.0,0.0987]
[1739437373967,0.3608,96093.0,96075.0,0.01627067]
[1739437374170,0.3608,96093.0,96087.0,0.2081143]
[1739437374374,0.3608,96093.0,96074.0,0.0987]
[1739437374670,0.38407482,96093.0,96088.0,0.2081116]
[1739437375464,0.38407482,96093.0,96089.0,0.01627108]
[1739437375664,0.38407482,96093.0,96088.0,0.2081116]
[1739437376166,0.38407482,96093.0,96089.0,0.01627116]
[1739437376368,0.2081081,96090.0,96088.0,0.002]
[1739437377369,0.102,96089.0,96088.0,0.002]
[1739437377666,0.17552,96089.0,96088.0,0.001]
[1739437378072,0.17552,96089.0,96081.0,0.208127]
[1739437378273,0.3101106,96089.0,96081.0,0.208127]
[1739437378668,0.3101106,96089.0,96088.0,0.002]
[1739437379258,0.3101106,96089.0,96088.0,0.001]
[1739437379577,0.3101106,96089.0,96081.0,0.209127]
[1739437379578,0.102,96089.0,96081.0,0.210127]
[1739437379869,0.2081167,96086.0,96081.0,0.209127]
[1739437380264,0.208119,96085.0,96081.0,0.001]
[1739437380975,0.102,96089.0,96081.0,0.2091273]
[1739437381175,0.2081123,96088.0,96081.0,0.2091273]
[1739437381582,0.2081123,96088.0,96081.0,0.2081273]
[1739437382070,0.2081123,96088.0,96081.0,0.2091273]
[1739437382386,0.102,96089.0,96081.0,0.002]
[1739437382678,0.02327482,96093.0,96091.0,0.2081058]
[1739437382872,0.208092,96098.0,96091.0,0.2081058]
[1739437383081,0.1,96100.0,96095.0,0.2080971]
[1739437383371,0.15,96096.0,96095.0,0.2080971]
[1739437383766,0.15,96096.0,96095.0,0.5688971]
[1739437383969,0.15,96096.0,96095.0,0.2080971]
[1739437384272,0.15,96096.0,96095.0,0.59248791]
[1739437384467,0.15,96096.0,96095.0,0.5688971]
[1739437384879,0.15,96096.0,96095.0,0.2080971]
[1739437387077,0.15,96096.0,96095.0,0.22436527]
[1739437387278,0.15,96096.0,96095.0,0.2080971]
[1739437388678,0.20060832,96096.0,96095.0,0.2080971]
[1739437390583,0.05060832,96096.0,96095.0,0.2080971]
[1739437391273,2e-08,96100.0,96095.0,0.2080971]
[1739437391479,0.21678638,96123.0,96099.0,0.3608]
[1739437391678,0.21678638,96123.0,96112.0,0.2080585]
[1739437391679,0.2080498,96117.0,96112.0,0.2080585]
[1739437391872,0.2080675,96109.0,96107.0,0.3608]
[1739437392180,0.2580675,96109.0,96107.0,0.3608]
[1739437392568,0.2080817,96103.0,96101.0,0.00015611]
[1739437392767,0.2380817,96103.0,96101.0,0.00015611]
[1739437393580,0.03,96103.0,96101.0,0.00015611]
[1739437393778,0.2380799,96103.0,96101.0,0.00015611]
[1739437394377,0.03,96103.0,96101.0,0.00015611]
[1739437395275,0.03,96103.0,96101.0,0.00815611]
[1739437395469,0.03,96103.0,96101.0,0.01215611]
[1739437399383,0.03,96103.0,96102.0,0.208082]
[1739437400684,0.1039,96126.0,96117.0,0.2080495]
[1739437400880,0.16,96118.0,96117.0,0.2080495]
[1739437401381,0.16,96118.0,96117.0,0.5688495]
[1739437401978,0.16,96118.0,96117.0,0.2080495]
[1739437407088,0.16,96118.0,96117.0,0.5688495]
[1739437407288,0.15542395,96135.0,96117.0,0.3770623]
[1739437407487,0.28542395,96135.0,96134.0,0.2080127]
[1739437408389,0.28542395,96135.0,96129.0,0.2080229]
[1739437408693,0.28542395,96135.0,96130.0,0.1019]
[1739437409293,0.2080153,96133.0,96130.0,0.1019]
[1739437409594,0.33878646,96133.0,96130.0,0.1019]
[1739437409790,0.11,96133.0,96130.0,0.1019]
[1739437409994,0.11,96133.0,96131.0,0.2080184]
[1739437410197,0.11,96133.0,96132.0,0.01626291]
[1739437410390,0.3608,96145.0,96132.0,0.01626291]
[1739437410593,0.14,96145.0,96139.0,0.2080019]
[1739437410782,0.14,96145.0,96135.0,0.12519395]
[1739437410783,0.14,96145.0,96140.0,0.1209615]
[1739437410989,0.14,96145.0,96140.0,0.1047]
[1739437411283,0.3608,96141.0,96131.0,0.013]
[1739437411485,0.2080149,96133.0,96131.0,0.013]
[1739437411690,0.2480149,96133.0,96131.0,0.013]
[1739437412195,0.04,96133.0,96131.0,0.013]
[1739437412392,0.04,96133.0,96132.0,0.01626297]
[1739437412782,0.04,96133.0,96131.0,0.019]
[1739437413593,0.2480153,96133.0,96131.0,0.019]
[1739437414095,0.2480153,96133.0,96131.0,0.006]
[1739437414796,0.2480153,96133.0,96132.0,0.005]
[1739437415297,0.2480153,96133.0,96131.0,0.016]
[1739437415497,0.03,96133.0,96132.0,0.01626309]
[1739437416292,0.03,96133.0,96132.0,0.02126309]
[1739437416695,0.03,96133.0,96132.0,0.03126309]
[1739437417199,0.03,96133.0,96132.0,0.015]
[1739437417691,0.03,96133.0,96132.0,0.005]
[1739437417892,0.03,96133.0,96132.0,0.003]
[1739437418091,0.03,96133.0,96132.0,0.005]
[1739437419300,0.03,96133.0,96132.0,0.1075]
[1739437420192,0.03,96133.0,96132.0,0.13158804]
[1739437421003,0.03,96133.0,96132.0,0.1105]
[1739437421192,0.03,96133.0,96132.0,0.318517]
[1739437421599,0.03,96133.0,96132.0,0.325517]
[1739437423394,0.05075616,96133.0,96132.0,0.015]
[1739437423893,0.03,96133.0,96132.0,0.015]
[1739437424298,0.03,96133.0,96132.0,0.03126282]
[1739437425400,0.3908,96133.0,96132.0,0.03126282]
[1739437425796,0.03,96133.0,96132.0,0.03126282]
[1739437426602,0.03,96133.0,96132.0,0.05728249]
[1739437426795,0.03,96133.0,96132.0,0.05728194]
[1739437427503,0.03,96133.0,96132.0,0.05728177]
[1739437428498,0.3608,96143.0,96132.0,0.05728177]
[1739437428702,0.07,96143.0,96142.0,0.5687954]
[1739437428895,0.07,96143.0,96142.0,0.25027502]
[1739437429090,0.07,96143.0,96142.0,0.25027516]
[1739437429297,0.07,96143.0,96142.0,0.22425762]
[1739437430796,0.07,96143.0,96142.0,0.22425679]
[1739437430997,0.07,96143.0,96142.0,0.22725679]
[1739437431403,0.2779933,96143.0,96142.0,0.01926136]
[1739437431601,0.2779933,96143.0,96142.0,0.005]
[1739437431807,0.07,96143.0,96142.0,0.005]
[1739437432001,0.07,96143.0,96142.0,0.02126168]
[1739437432201,0.07,96143.0,96142.0,0.005]
[1739437432402,0.07,96143.0,96142.0,0.2129954]
[1739437434107,0.07,96143.0,96142.0,0.22925722]
[1739437434308,0.07,96143.0,96142.0,0.22625722]
[1739437434608,0.07,96143.0,96142.0,0.22925722]
[1739437436906,0.07,96143.0,96142.0,0.59005722]
[1739437437311,0.07,96143.0,96142.0,0.8388529]
[1739437438613,0.07,96143.0,96142.0,0.83885134]
[1739437441721,0.70120001,96150.0,96149.0,0.2079803]
[1739437441908,0.84,96150.0,96149.0,0.22423998]
[1739437443930,0.84,96150.0,96149.0,0.22423956]
[1739437444330,0.84,96150.0,96149.0,0.245109]
[1739437444531,0.84,96150.0,96149.0,0.22423949]
[1739437445231,0.84,96150.0,96149.0,0.24584924]
[1739437445826,0.84,96150.0,96149.0,0.24584923]
[1739437446423,0.84,96150.0,96149.0,0.22423948]
[1739437446728,0.3474,96165.0,96149.0,0.22423948]
[1739437446729,5e-08,96165.0,96164.0,0.2079479]
[1739437446923,0.14,96165.0,96164.0,0.58500708]
[1739437447128,0.12884479,96179.0,96175.0,0.2079241]
[1739437447329,0.43334585,96176.0,96175.0,0.01625918]
[1739437447529,0.22542395,96176.0,96155.0,0.36251594]
[1739437447727,0.12519395,96166.0,96158.0,0.2079607]
[1739437447931,0.2156,96165.0,96159.0,0.01625728]
[1739437448130,0.3608,96161.0,96155.0,0.00171594]
[1739437448431,0.4308,96161.0,96159.0,0.2079581]
[1739437449432,0.4308,96161.0,96155.0,0.00171594]
[1739437449629,0.3608,96156.0,96144.0,0.30911609]
[1739437449833,0.3608,96145.0,96144.0,0.30911609]
[1739437450041,0.4308,96145.0,96144.0,0.30911609]
[1739437450329,0.07,96145.0,96144.0,0.30911609]
[1739437450928,0.07,96145.0,96144.0,0.31311609]
[1739437451128,0.07,96145.0,96144.0,0.32011609]
[1739437451334,0.09069463,96145.0,96144.0,0.32011609]
[1739437452333,0.09069463,96145.0,96144.0,0.31711609]
[1739437452733,0.09069463,96145.0,96144.0,0.31011609]
[1739437453741,0.09069463,96145.0,96144.0,0.001]
[1739437454737,0.29868363,96145.0,96144.0,0.001]
[1739437454939,0.09069463,96145.0,96144.0,0.001]
[1739437455644,0.0907457,96145.0,96144.0,0.001]
[1739437456030,0.07005107,96145.0,96144.0,0.001]
[1739437458637,0.07005107,96145.0,96144.0,0.004]
[1739437458944,0.07005107,96145.0,96144.0,0.011]
[1739437459333,5.107e-05,96145.0,96144.0,0.011]
[1739437464944,5.107e-05,96145.0,96144.0,0.32011609]
[1739437465745,0.01906089,96159.0,96158.0,0.2079608]
[1739437465936,0.03,96159.0,96158.0,0.2079608]
[1739437466637,0.03,96159.0,96158.0,0.22421873]
[1739437467041,0.2379587,96159.0,96158.0,0.01625793]
[1739437467343,0.03,96159.0,96144.0,0.31311609]
[1739437467543,0.48599395,96154.0,96144.0,0.31311609]
[1739437467738,0.60599395,96154.0,96144.0,0.31311609]
[1739437468136,0.60599395,96154.0,96144.0,0.30911609]
[1739437468342,0.207989,96145.0,96144.0,0.30911609]
[1739437468545,0.2079998,96140.0,96139.0,0.3720445]
[1739437468737,0.2279998,96140.0,96139.0,0.3720445]
[1739437469436,0.24696723,96140.0,96139.0,0.3720445]
[1739437469746,0.24696723,96140.0,96139.0,0.3830445]
[1739437469934,0.02,96140.0,96139.0,0.3890445]
[1739437470739,0.2279998,96140.0,96139.0,0.3890445]
[1739437470939,0.02,96140.0,96139.0,0.3890445]
[1739437472434,0.02,96140.0,96139.0,0.5970464]
[1739437472747,0.02,96140.0,96139.0,0.017]
[1739437472937,0.02,96140.0,96139.0,0.2250019]
[1739437473647,0.02,96140.0,96139.0,0.24126312]
[1739437474349,0.02,96140.0,96139.0,0.26024194]
[1739437477143,0.2079572,96160.0,96142.0,0.0519988]
[1739437477348,0.2379572,96160.0,96158.0,0.2079598]
[1739437477551,0.03,96160.0,96159.0,0.01626122]
[1739437479653,0.03,96160.0,96158.0,0.2079598]
[1739437479836,0.10344,96160.0,96158.0,0.2079598]
[1739437480440,0.10344,96160.0,96156.0,0.3608]
[1739437480648,0.2079612,96158.0,96156.0,0.3608]
[1739437480846,0.2279612,96158.0,96156.0,0.3608]
[1739437481247,0.02,96158.0,96154.0,0.31147648]
[1739437481449,0.5687673,96155.0,96154.0,0.31147648]
[1739437481643,0.6087673,96155.0,96154.0,0.31147648]
[1739437481846,0.4008,96155.0,96154.0,0.31147648]
[1739437482241,0.04,96155.0,96154.0,0.31147648]
[1739437482451,0.04,96155.0,96154.0,0.52044598]
[1739437483154,0.04,96155.0,96154.0,0.52144598]
[1739437483749,0.04,96155.0,96154.0,0.53770494]
[1739437484563,0.04,96155.0,96154.0,0.53770507]
[1739437485357,0.04,96155.0,96154.0,0.22622859]
[1739437486451,0.04,96155.0,96154.0,0.22622852]
[1739437487157,0.04,96155.0,96154.0,0.01825902]
[1739437487354,0.2479673,96155.0,96154.0,0.01825902]
[1739437487758,0.04,96155.0,96154.0,0.01825902]
[1739437490264,0.04,96155.0,96154.0,0.01825931]
[1739437491262,0.2479673,96155.0,96154.0,0.01825931]
[1739437491867,0.2079673,96155.0,96154.0,0.002]
[1739437492964,0.6087673,96155.0,96154.0,0.002]
[1739437503185,0.4008,96155.0,96154.0,0.002]
[1739437503380,0.47508,96155.0,96154.0,0.002]
[1739437503780,0.4008,96155.0,96154.0,0.002]
[1739437503975,0.47512,96155.0,96154.0,0.002]
[1739437504492,0.47504,96155.0,96154.0,0.002]
[1739437505081,0.4008,96155.0,96154.0,0.002]
[1739437505487,0.475,96155.0,96154.0,0.002]
[1739437505691,0.04,96155.0,96154.0,0.01825995]
[1739437506285,0.04,96155.0,96154.0,0.01825841]
[1739437506685,0.04,96155.0,96154.0,0.002]
[1739437506984,0.11416,96155.0,96154.0,0.13385765]
[1739437507191,0.04,96155.0,96154.0,0.13385765]
[1739437509782,0.04,96155.0,96154.0,0.1176]
[1739437510087,0.04,96155.0,96154.0,0.1216]
[1739437510694,0.04,96155.0,96154.0,0.1296]
[1739437510889,0.04,96155.0,96154.0,0.14585781]
[1739437512589,0.04,96155.0,96154.0,0.14585651]
[1739437513880,0.03833513,96155.0,96154.0,0.14585651]
[1739437514298,0.15542395,96178.0,96154.0,0.14585651]
[1739437514299,0.2079217,96177.0,96154.0,0.14585651]
[1739437514481,0.04015516,96168.0,96167.0,0.2079414]
[1739437514677,0.04015516,96168.0,96167.0,0.22419791]
[1739437516184,0.04015516,96168.0,96167.0,0.22519791]
[1739437516695,0.05935691,96168.0,96167.0,0.22519791]
[1739437517984,0.05935691,96168.0,96167.0,0.23719791]
[1739437518191,0.05935691,96168.0,96167.0,0.23719742]
[1739437518395,0.04015516,96168.0,96167.0,0.23719742]
[1739437520697,0.04015516,96168.0,96167.0,0.2371972]
[1739437520893,0.04015516,96168.0,96167.0,0.2209414]
[1739437522396,0.2,96190.0,96167.0,0.013]
[1739437522591,0.29,96190.0,96189.0,0.5686938]
[1739437525300,0.29,96190.0,96189.0,0.5766938]
[1739437527092,0.4978916,96190.0,96189.0,0.008]
[1739437527993,0.2079111,96181.0,96180.0,0.00015594]
[1739437528194,0.6087111,96181.0,96180.0,0.00015594]
[1739437529101,0.6087111,96181.0,96180.0,0.01415594]
[1739437529893,0.6087111,96181.0,96180.0,0.01615594]
[1739437530201,0.62608633,96181.0,96180.0,0.01615594]
[1739437531996,0.2079349,96170.0,96165.0,0.18628283]
[1739437532292,0.2379349,96170.0,96165.0,0.18628283]
[1739437532695,0.4682349,96170.0,96161.0,0.18628283]
[1739437533099,0.4682349,96170.0,96169.0,0.00145965]
[1739437533700,0.4682349,96170.0,96169.0,0.00645965]
[1739437534394,0.4682349,96170.0,96169.0,0.00635965]
[1739437535403,0.4682349,96170.0,96169.0,0.00935965]
[1739437535601,0.4702349,96170.0,96169.0,0.00925965]
[1739437539610,0.4702349,96170.0,96169.0,0.00425965]
[1739437539810,0.4692349,96170.0,96169.0,0.01025965]
[1739437541602,0.2613,96170.0,96161.0,0.24850857]
[1739437541814,0.5687522,96162.0,96161.0,0.24850857]
[1739437542010,0.6587522,96162.0,96161.0,0.24850857]
[1739437542813,0.6587522,96162.0,96161.0,0.26450857]
[1739437543719,0.6597522,96162.0,96161.0,0.26450857]
[1739437544718,0.47319796,96162.0,96161.0,0.26450857]
[1739437545215,0.47319796,96162.0,96161.0,0.016]
[1739437553713,0.26524576,96162.0,96161.0,0.016]
[1739437554122,0.26524576,96162.0,96161.0,0.2239544]
[1739437554422,0.26524576,96162.0,96161.0,0.3441544]
[1739437555418,0.26524576,96162.0,96161.0,0.1362]
[1739437555924,0.47319796,96162.0,96161.0,0.1362]
[1739437556119,0.47319796,96162.0,96161.0,0.016]
[1739437562129,0.47319796,96162.0,96138.0,0.24850857]
[1739437562130,0.26524576,96162.0,96138.0,0.24850857]
[1739437562318,0.26524576,96162.0,96138.0,0.20744784]
[1739437562319,0.5688019,96139.0,96138.0,0.20744784]
[1739437562517,0.2080171,96132.0,96130.0,0.31063572]
[1739437562720,0.3608,96131.0,96130.0,0.31063572]
[1739437562915,0.5608,96131.0,96130.0,0.31063572]
[1739437565020,0.2080246,96129.0,96122.0,0.2174]
[1739437565221,0.2080294,96127.0,96122.0,0.2174]
[1739437565424,0.265499,96127.0,96122.0,0.2174]
[1739437566024,0.265499,96127.0,96122.0,0.2244]
[1739437566625,0.265499,96127.0,96122.0,0.2174]
[1739437566933,0.0584696,96127.0,96122.0,0.2244]
[1739437567833,0.0584696,96127.0,96124.0,0.2080338]
[1739437568226,0.0584696,96127.0,96122.0,0.2244]
[1739437568427,0.0594696,96127.0,96122.0,0.2244]
[1739437569329,0.0594696,96127.0,96124.0,0.007]
[1739437569924,0.0594696,96127.0,96122.0,0.2244]
[1739437570636,0.0594696,96127.0,96125.0,0.2080315]
[1739437571032,0.0594696,96127.0,96122.0,0.2244]
[1739437571329,0.0594696,96127.0,96122.0,0.2174]
[1739437571534,0.0594696,96127.0,96124.0,0.007]
[1739437571935,0.0594696,96127.0,96122.0,0.2174]
[1739437572139,0.0594696,96127.0,96125.0,0.007]
[1739437572527,0.0594696,96127.0,96123.0,0.2080355]
[1739437572822,0.0594696,96127.0,96124.0,0.007]
[1739437573835,0.0594696,96127.0,96124.0,0.2150331]
[1739437574022,0.0594696,96127.0,96124.0,0.007]
[1739437574226,0.0594696,96127.0,96125.0,0.2080316]
[1739437574841,0.042,96127.0,96125.0,0.2080316]
[1739437575027,0.002,96127.0,96125.0,0.2080316]
[1739437575228,0.002,96127.0,96125.0,0.2080309]
[1739437575634,0.002,96127.0,96125.0,0.2150309]
[1739437576229,0.002,96127.0,96125.0,0.23262121]
[1739437578833,0.00015602,96140.0,96139.0,0.2080019]
[1739437579133,0.01015602,96140.0,96139.0,0.5688019]
[1739437579844,0.01215602,96140.0,96139.0,0.5688019]
[1739437580841,0.01215602,96140.0,96139.0,0.5738019]
[1739437583443,0.01215602,96140.0,96139.0,0.3658]
[1739437583939,0.58095582,96140.0,96139.0,0.005]
[1739437584139,0.22015582,96140.0,96139.0,0.005]
[1739437584337,0.58095582,96140.0,96139.0,0.005]
[1739437585535,0.58095582,96140.0,96124.0,0.31063572]
[1739437585536,0.2080268,96128.0,96124.0,0.31063572]
[1739437585738,0.2480268,96128.0,96124.0,0.31063572]
[1739437585939,0.04,96128.0,96124.0,0.31063572]
[1739437586746,0.04,96128.0,96122.0,0.2080378]
[1739437586933,0.041,96128.0,96124.0,0.007]
[1739437587129,0.0738,96127.0,96124.0,0.007]
[1739437587335,0.1038,96127.0,96125.0,0.2080308]
[1739437587534,0.03,96127.0,96125.0,0.2080308]
[1739437588047,0.03,96127.0,96126.0,0.3608]
[1739437588245,0.03,96127.0,96126.0,0.6002]
[1739437588634,0.031,96127.0,96126.0,0.6002]
[1739437589144,0.032,96127.0,96126.0,0.6002]
[1739437590242,0.032,96127.0,96126.0,0.6072]
[1739437593841,0.032,96127.0,96126.0,0.4866]
[1739437594045,0.032,96127.0,96126.0,0.3678]
[1739437599044,0.032,96127.0,96126.0,0.007]
[1739437599844,0.1535,96127.0,96126.0,0.007]
[1739437600658,0.3615279,96127.0,96126.0,0.007]
[1739437601042,0.1535,96127.0,96126.0,0.007]
[1739437602155,0.032,96127.0,96126.0,0.2150301]
[1739437606553,0.032,96127.0,96126.0,0.007]
[1739437617665,0.032,96127.0,96126.0,0.2150301]
[1739437617966,0.032,96127.0,96126.0,0.007]
[1739437621068,0.032,96127.0,96126.0,0.2150301]
[1739437625160,0.00015602,96140.0,96139.0,0.2080019]
[1739437625474,0.03015602,96140.0,96139.0,0.2080019]
[1739437626268,0.03015602,96140.0,96139.0,0.2130019]
[1739437627472,0.03215602,96140.0,96139.0,0.2130019]
[1739437632674,0.03215602,96140.0,96139.0,0.005]
[1739437634378,0.03215602,96140.0,96139.0,0.2130019]
[1739437635979,0.57947337,96154.0,96139.0,0.005]
[1739437636277,0.12519395,96150.0,96147.0,0.2079846]
[1739437636480,0.06,96150.0,96147.0,0.2079846]
[1739437637475,0.06,96150.0,96147.0,0.003]
[1739437637673,0.13352,96150.0,96148.0,0.2079807]
[1739437637873,0.061,96150.0,96148.0,0.2079807]
[1739437638470,0.07705514,96150.0,96147.0,0.003]
[1739437639487,0.07705514,96150.0,96139.0,0.00015602]
[1739437639680,0.07705514,96150.0,96148.0,0.002]
[1739437640180,0.07705514,96150.0,96147.0,0.003]
[1739437640381,0.05058576,96149.0,96147.0,0.003]
[1739437640583,0.11058576,96149.0,96147.0,0.001]
[1739437641584,0.11158576,96149.0,96147.0,0.001]
[1739437642390,0.11158576,96149.0,96147.0,0.004]
[1739437642780,0.11158576,96149.0,96147.0,0.001]
[1739437642980,0.11158576,96149.0,96147.0,0.004]
[1739437644380,0.061,96149.0,96148.0,0.2079825]
[1739437644777,0.061,96149.0,96148.0,0.5687825]
[1739437645175,0.061,96149.0,96148.0,0.6893825]
[1739437645691,0.01,96149.0,96148.0,0.8056825]
[1739437645894,0.01,96149.0,96148.0,0.8076825]
[1739437646394,0.011,96149.0,96148.0,0.8086825]
[1739437646993,0.1186,96167.0,96157.0,0.207963]
[1739437647193,0.04015586,96158.0,96157.0,0.568763]
[1739437649284,0.04115586,96158.0,96157.0,0.571763]
[1739437649887,0.04115586,96158.0,96157.0,0.572763]
[1739437650090,0.04015586,96158.0,96157.0,0.58492227]
[1739437650287,0.04115586,96158.0,96157.0,0.58792227]
[1739437651488,0.04115586,96158.0,96157.0,0.572763]
[1739437651789,0.04115586,96158.0,96157.0,0.58753225]
[1739437659089,0.04115586,96158.0,96157.0,0.572763]
[1739437659999,0.04115586,96158.0,96157.0,0.5873807]
[1739437660599,0.00115586,96158.0,96157.0,0.5873807]
[1739437660801,0.00115586,96158.0,96157.0,0.572763]
[1739437663100,0.01578096,96158.0,96157.0,0.572763]
[1739437663302,0.00115586,96158.0,96157.0,0.572763]
[1739437664397,0.00115586,96158.0,96157.0,0.004]
[1739437664398,0.26414873,96158.0,96157.0,0.004]
[1739437665403,0.26414873,96158.0,96139.0,0.00015602]
[1739437665404,0.05618783,96158.0,96139.0,0.00015602]
[1739437665601,0.2079816,96149.0,96139.0,0.00015602]
[1739437665802,0.1124,96148.0,96139.0,0.00015602]
[1739437666000,0.3603828,96148.0,96139.0,0.00015602]
[1739437666204,0.1524,96148.0,96139.0,0.00015602]
[1739437666503,0.2079919,96144.0,96139.0,0.00915602]
[1739437666707,0.2379919,96144.0,96139.0,0.00915602]
[1739437667006,0.1175,96143.0,96139.0,0.00915602]
[1739437667204,0.1375,96143.0,96139.0,0.00715602]
[1739437667397,0.1375,96143.0,96139.0,0.00915602]
[1739437667797,0.1179,96142.0,96139.0,0.00915602]
[1739437667994,0.16290356,96142.0,96139.0,0.00915602]
[1739437669191,0.16290356,96142.0,96139.0,0.00215602]
[1739437669407,0.16290356,96142.0,96139.0,0.00715602]
[1739437669591,0.04500356,96142.0,96139.0,0.00715602]
[1739437669795,0.04600356,96142.0,96139.0,0.00715602]
[1739437670896,0.04800356,96142.0,96139.0,0.00715602]
[1739437672801,0.04800356,96142.0,96141.0,0.2079976]
[1739437673899,0.04800356,96142.0,96141.0,0.2139976]
[1739437675610,0.01800356,96142.0,96141.0,0.2139976]
[1739437677011,0.003,96142.0,96141.0,0.2139976]
[1739437680108,0.033,96142.0,96141.0,0.2139976]
[1739437684807,0.2409955,96142.0,96141.0,0.006]
[1739437685312,0.033,96142.0,96141.0,0.006]
[1739437686415,0.033,96142.0,96141.0,0.2139976]
[1739437690012,0.033,96142.0,96141.0,0.006]
[1739437690512,0.2409954,96142.0,96141.0,0.006]
[1739437690713,0.033,96142.0,96141.0,0.006]
[1739437690909,0.033,96142.0,96141.0,0.2139976]
[1739437694520,0.003,96142.0,96141.0,0.2139976]
[1739437694823,0.15583488,96153.0,96152.0,0.2079738]
[1739437695012,0.17583488,96153.0,96152.0,0.5687738]
[1739437696013,0.17683488,96153.0,96152.0,0.5717738]
[1739437698416,0.021,96153.0,96152.0,0.82020906]
[1739437698615,0.021,96153.0,96152.0,0.94360906]
[1739437701124,0.021,96153.0,96152.0,0.6951738]
[1739437719229,0.15583488,96165.0,96164.0,0.2079478]
[1739437719535,0.20583488,96165.0,96164.0,0.5687478]
[1739437720334,0.20683488,96165.0,96164.0,0.5697478]
[1739437721228,0.20783488,96165.0,96164.0,0.5697478]
[1739437721428,0.41578058,96165.0,96164.0,0.3618]
[1739437722024,0.41578058,96165.0,96164.0,0.001]
[1739437722232,0.2599457,96165.0,96164.0,0.001]
[1739437728436,0.052,96165.0,96164.0,0.001]
[1739437729233,0.002,96165.0,96164.0,0.001]
[1739437729936,0.2099457,96165.0,96164.0,0.001]
[1739437730244,0.002,96165.0,96164.0,0.001]
[1739437731541,0.05257659,96165.0,96164.0,0.001]
[1739437732344,0.05257659,96165.0,96164.0,0.01725784]
[1739437734246,0.05257659,96165.0,96164.0,0.001]
[1739437734637,0.002,96165.0,96164.0,0.001]
[1739437735345,0.002,96165.0,96164.0,0.01725784]
[1739437738560,0.002,96165.0,96164.0,0.001]
[1739437738747,0.002,96165.0,96164.0,0.01725781]
[1739437739343,0.002,96165.0,96164.0,0.001]
[1739437740648,0.142,96165.0,96164.0,0.001]
[1739437740847,0.2079478,96164.0,96162.0,0.24843526]
[1739437741045,0.2979478,96164.0,96162.0,0.24843526]
[1739437741247,0.1112,96163.0,96162.0,0.24843526]
[1739437741552,0.2012,96163.0,96162.0,0.24843526]
[1739437741943,0.2012,96163.0,96162.0,0.25043526]
[1739437742649,0.2012,96163.0,96162.0,0.24843526]
[1739437742846,0.2022,96163.0,96162.0,0.25043526]
[1739437743645,0.2022,96163.0,96162.0,0.002]
[1739437743952,0.2756,96163.0,96162.0,0.002]
[1739437745352,0.09900896,96163.0,96162.0,0.002]
[1739437745557,0.09900896,96163.0,96159.0,0.18031078]
[1739437745558,0.02560896,96163.0,96159.0,0.18031078]
[1739437745858,0.5687564,96160.0,96159.0,0.18031078]
[1739437746053,0.6187564,96160.0,96159.0,0.18031078]
[1739437746649,0.6187564,96160.0,96159.0,0.18131078]
[1739437747354,0.6187564,96160.0,96159.0,0.001]
[1739437747556,0.6187564,96160.0,96159.0,0.002]
[1739437748452,0.6197564,96160.0,96159.0,0.001]
[1739437751449,0.67033934,96160.0,96159.0,0.001]
[1739437756659,0.46238294,96160.0,96159.0,0.001]
[1739437758358,0.4118,96160.0,96159.0,0.001]
[1739437758559,0.48516,96160.0,96159.0,0.001]
[1739437761558,0.4118,96160.0,96159.0,0.001]
[1739437761760,0.48516,96160.0,96159.0,0.001]
[1739437762558,0.4118,96160.0,96159.0,0.001]
[1739437762864,0.48516,96160.0,96159.0,0.001]
[1739437764956,0.5357399,96160.0,96159.0,0.001]
[1739437765162,0.4623799,96160.0,96159.0,0.001]
[1739437766754,0.6703363,96160.0,96159.0,0.001]
[1739437769765,0.4623799,96160.0,96159.0,0.001]
[1739437770367,0.6703363,96160.0,96159.0,0.001]
[1739437773571,0.6197564,96160.0,96159.0,0.001]
[1739437775271,0.4118,96160.0,96159.0,0.001]
[1739437775474,0.0137191,96168.0,96166.0,0.2079418]
[1739437775778,0.0137191,96168.0,96159.0,0.3618]
[1739437775779,0.03,96168.0,96167.0,0.49065814]
[1739437775959,0.0130761,96169.0,96167.0,0.49065814]
[1739437776163,0.15595029,96172.0,96168.0,0.01625814]
[1739437776473,0.20942156,96172.0,96169.0,0.01625814]
[1739437776666,0.20942156,96172.0,96167.0,0.47492]
[1739437776859,0.20942156,96172.0,96167.0,0.4744]
[1739437777667,0.001,96168.0,96167.0,0.4744]
[1739437778066,0.17042156,96172.0,96167.0,0.4744]
[1739437778272,0.03347127,96172.0,96167.0,0.4744]
[1739437778468,0.03447127,96172.0,96167.0,0.4774]
[1739437778670,0.03447127,96172.0,96168.0,0.12645639]
[1739437778860,0.03447127,96172.0,96169.0,0.01625639]
[1739437779065,0.03447127,96172.0,96168.0,0.1102]
[1739437779273,0.03447127,96172.0,96168.0,0.3181384]
[1739437780367,0.03447127,96172.0,96168.0,0.3221384]
[1739437782574,0.03447127,96172.0,96168.0,0.1142]
[1739437783574,0.03447127,96172.0,96171.0,0.2079327]
[1739437784776,0.02,96172.0,96171.0,0.2099327]
[1739437785081,0.021,96172.0,96171.0,0.2099327]
[1739437785278,0.021,96172.0,96171.0,0.2261881]
[1739437787081,0.021,96172.0,96171.0,0.23910017]
[1739437787676,0.021,96172.0,96171.0,0.2261881]
[1739437788379,0.021,96172.0,96171.0,0.23914906]
[1739437788982,0.5097,96187.0,96171.0,0.23914906]
[1739437788983,0.1489,96187.0,96186.0,0.2079002]